bitfinex/quotes_SOLUSD_20240625
["timestamp","ask_amount","ask_price","bid_price","bid_amount"]
[1719334737122,14.90825548,137.68,137.65,7.2647]
[1719334737452,14.90825548,137.68,137.64,25.4283]
[1719334737833,7.35471078,137.68,137.63,7.2657]
[1719334738038,7.262,137.71,137.64,7.2652]
[1719334738231,27.50489332,137.7,137.64,7.2652]
[1719334738723,34.8596041,137.7,137.63,25.4299]
[1719334738944,14.8596041,137.7,137.63,18.1643]
[1719334739142,7.35471078,137.7,137.65,18.1617]
[1719334739743,7.35471078,137.7,137.66,7.2638]
[1719334740243,255.2,137.74,137.67,18.1592]
[1719334740446,255.2,137.74,137.69,7.2626]
[1719334740622,269.81481078,137.74,137.66,7.2641]
[1719334740947,255.2,137.74,137.65,23.7295]
[1719334741158,7.2607,137.73,137.65,23.7295]
[1719334741649,20.0,137.72,137.63,7.2657]
[1719334741953,7.2618,137.71,137.63,7.2657]
[1719334742166,27.35471078,137.7,137.61,22.4922]
[1719334742453,7.2633,137.68,137.61,22.4922]
[1719334742756,7.2628,137.69,137.61,29.759]
[1719334742956,27.2634,137.68,137.61,15.9657]
[1719334743121,34.61811078,137.68,137.61,15.9657]
[1719334744631,27.35471078,137.68,137.61,23.2325]
[1719334744950,34.61791078,137.68,137.61,15.9657]
[1719334745518,7.2637,137.67,137.59,25.4372]
[1719334745750,20.0,137.66,137.59,25.4372]
[1719334746660,20.0,137.66,137.6,7.2673]
[1719334746972,20.0,137.66,137.59,25.4372]
[1719334747639,20.0,137.66,137.6,7.2674]
[1719334748251,27.35471078,137.66,137.59,25.4373]
[1719334748435,43.74371078,137.66,137.59,25.4373]
[1719334748837,51.00801078,137.66,137.59,18.1694]
[1719334749340,51.00801078,137.66,137.59,25.4373]
[1719334750845,43.74371078,137.66,137.59,25.4373]
[1719334752237,51.26689399,137.66,137.59,25.4373]
[1719334752761,51.26689399,137.66,137.59,18.1694]
[1719334752978,51.26689399,137.66,137.61,7.2668]
[1719334753141,51.26689399,137.66,137.6,7.2672]
[1719334753469,51.26689399,137.66,137.59,25.4372]
[1719334754464,51.26689399,137.66,137.6,7.2674]
[1719334754651,51.26689399,137.66,137.57,15.4283]
[1719334754652,31.26689399,137.66,137.62,7.2659]
[1719334754850,23.74371078,137.66,137.62,7.2659]
[1719334755380,23.74371078,137.66,137.61,18.1668]
[1719334755539,23.74371078,137.66,137.6,7.2669]
[1719334756866,23.74371078,137.66,137.61,7.2668]
[1719334757670,23.74371078,137.66,137.6,25.4356]
[1719334758053,23.74371078,137.66,137.6,18.1683]
[1719334758360,31.00801078,137.66,137.59,7.2677]
[1719334758591,23.74371078,137.66,137.59,7.2677]
[1719334759449,23.74371078,137.66,137.57,15.4283]
[1719334759959,23.74371078,137.66,137.61,18.167]
[1719334760158,23.74371078,137.66,137.6,7.2673]
[1719334760671,23.74371078,137.66,137.57,15.4283]
[1719334760672,23.74371078,137.66,137.61,7.2667]
[1719334761672,23.74371078,137.66,137.6,25.4353]
[1719334761973,23.74371078,137.66,137.61,7.2667]
[1719334762778,23.74371078,137.66,137.61,15.2667]
[1719334763472,7.35471078,137.66,137.63,7.2658]
[1719334763791,7.51837697,137.68,137.63,8.0]
[1719334763994,20.0,137.67,137.62,26.1657]
[1719334765157,20.0,137.67,137.62,33.432]
[1719334765362,22.87308775,137.68,137.62,33.432]
[1719334765687,7.35471078,137.68,137.63,15.2657]
[1719334765871,15.35471078,137.68,137.62,33.432]
[1719334766112,15.35471078,137.68,137.63,8.0]
[1719334767883,7.35471078,137.68,137.63,15.2657]
[1719334768084,15.35471078,137.68,137.63,8.0]
[1719334771985,7.35471078,137.68,137.63,15.2658]
[1719334772388,15.4334,137.7,137.64,18.1629]
[1719334772589,15.4334,137.7,137.67,8.0]
[1719334773263,6.3582,137.71,137.67,15.2637]
[1719334773468,6.3582,137.71,137.67,8.0]
[1719334773684,6.3582,137.71,137.66,26.1604]
[1719334773878,6.3582,137.71,137.66,33.4246]
[1719334775893,6.3582,137.71,137.67,8.0]
[1719334776188,23.3474,137.73,137.67,8.0]
[1719334776392,8.0,137.72,137.67,8.0]
[1719334776577,23.3474,137.73,137.67,8.0]
[1719334776766,8.0,137.72,137.67,8.0]
[1719334777387,31.3474,137.73,137.67,8.0]
[1719334777890,16.0868,137.73,137.69,8.0]
[1719334778492,16.0868,137.73,137.68,8.0]
[1719334779397,23.3473,137.73,137.68,8.0]
[1719334779691,16.0868,137.73,137.68,8.0]
[1719334782093,22.70484412,137.73,137.68,8.0]
[1719334783905,30.70484412,137.73,137.68,8.0]
[1719334786694,37.96544412,137.73,137.66,18.1604]
[1719334786881,21.87914412,137.72,137.66,8.0]
[1719334787293,14.61804412,137.72,137.66,8.0]
[1719334788301,14.61804412,137.72,137.66,15.2642]
[1719334789379,14.61804412,137.72,137.67,15.2636]
[1719334789591,6.61804412,137.72,137.67,15.2636]
[1719334790200,6.61804412,137.72,137.67,8.0]
[1719334790380,6.61804412,137.72,137.67,7.2637]
[1719334790576,6.61804412,137.72,137.67,18.1588]
[1719334790808,6.61804412,137.72,137.69,8.0]
[1719334791175,6.61804412,137.72,137.68,8.0]
[1719334792407,6.61804412,137.72,137.68,15.2631]
[1719334793115,6.61804412,137.72,137.68,8.0]
[1719334794289,20.99843989,137.79,137.72,7.2607]
[1719334794611,20.99843989,137.79,137.74,15.26]
[1719334794811,15.917,137.79,137.74,15.26]
[1719334795318,15.917,137.79,137.73,18.1512]
[1719334795490,15.917,137.79,137.74,8.0]
[1719334795685,31.1745,137.79,137.72,7.2607]
[1719334795882,31.1745,137.79,137.73,8.0]
[1719334796111,31.1745,137.79,137.71,7.2614]
[1719334796112,8.0,137.78,137.72,8.0]
[1719334796710,8.0,137.78,137.72,15.2611]
[1719334797429,8.0,137.78,137.72,7.2611]
[1719334797719,8.0,137.78,137.72,15.2611]
[1719334798613,23.917,137.79,137.73,8.0]
[1719334798987,23.917,137.79,137.73,15.2603]
[1719334799413,8.0,137.77,137.69,18.1562]
[1719334799718,8.0,137.76,137.71,33.4151]
[1719334799923,8.0,137.77,137.71,33.4151]
[1719334800119,8.0,137.76,137.71,8.0]
[1719334800323,28.50160456,137.79,137.68,34.4616]
[1719334800531,8.0,137.74,137.69,8.0]
[1719334800734,8.0,137.74,137.65,36.3223]
[1719334800894,8.0,137.74,137.68,8.0]
[1719334801219,6.2042,137.75,137.69,26.1558]
[1719334801539,39.12930456,137.78,137.72,7.2609]
[1719334801703,26.5447,137.78,137.72,8.0]
[1719334801901,26.5447,137.78,137.74,15.2597]
[1719334802325,12.58460456,137.82,137.76,8.0]
[1719334802542,12.58460456,137.82,137.78,8.0]
[1719334802709,5.96804412,137.82,137.77,15.258]
[1719334802913,15.7458,137.83,137.77,15.258]
[1719334803226,23.7458,137.83,137.77,8.0]
[1719334803408,15.7458,137.83,137.78,8.0]
[1719334803601,15.7458,137.83,137.79,8.0]
[1719334803802,15.7458,137.83,137.79,15.2573]
[1719334804114,6.2221,137.84,137.8,8.0]
[1719334804428,23.7458,137.86,137.81,8.0]
[1719334804429,15.7458,137.86,137.81,8.0]
[1719334804803,15.7458,137.86,137.81,15.2562]
[1719334805031,15.7458,137.86,137.81,8.0]
[1719334805244,23.7458,137.86,137.8,8.0]
[1719334805529,8.0,137.83,137.76,25.4057]
[1719334805736,8.0,137.83,137.78,8.0]
[1719334806723,8.0,137.83,137.78,15.2578]
[1719334806918,15.7458,137.86,137.79,15.2573]
[1719334807129,28.0,137.85,137.79,15.2573]
[1719334807330,28.0,137.85,137.79,8.0]
[1719334807537,28.0,137.85,137.79,15.2573]
[1719334807732,28.0,137.85,137.78,25.4023]
[1719334807921,8.0,137.84,137.79,8.0]
[1719334808242,8.0,137.83,137.77,8.0]
[1719334809142,6.2221,137.88,137.82,8.0]
[1719334809326,6.2221,137.88,137.81,8.0]
[1719334809327,8.0,137.87,137.81,8.0]
[1719334809638,8.0,137.87,137.81,15.2562]
[1719334809841,14.2221,137.88,137.82,15.2555]
[1719334810207,14.2221,137.88,137.82,7.2558]
[1719334810427,14.2221,137.88,137.82,15.2558]
[1719334810928,8.0,137.87,137.82,7.2558]
[1719334811172,8.0,137.86,137.81,15.2562]
[1719334811333,8.0,137.84,137.78,7.2575]
[1719334811637,8.0,137.83,137.78,7.2575]
[1719334814944,15.3437,137.84,137.75,15.9574]
[1719334815113,8.0,137.81,137.75,8.0]
[1719334815312,8.0,137.8,137.74,33.4091]
[1719334815906,8.0,137.8,137.75,7.2594]
[1719334816741,8.0,137.79,137.72,22.8106]
[1719334817041,8.0,137.77,137.71,25.4144]
[1719334817234,8.0,137.77,137.71,33.4144]
[1719334817539,6.3635,137.82,137.73,7.2604]
[1719334817838,6.3635,137.82,137.75,7.2594]
[1719334817839,20.0,137.81,137.75,7.2594]
[1719334818139,20.0,137.81,137.75,18.1484]
[1719334818323,6.3635,137.82,137.76,8.0]
[1719334818523,6.5536,137.86,137.75,22.103]
[1719334818727,6.5536,137.86,137.82,7.2557]
[1719334819042,14.5536,137.86,137.81,18.1406]
[1719334819414,21.8075,137.86,137.8,8.0]
[1719334819612,21.8075,137.86,137.78,25.4016]
[1719334819613,8.0,137.84,137.78,25.4016]
[1719334819813,8.0,137.84,137.78,33.4016]
[1719334820646,8.0,137.83,137.78,33.4016]
[1719334820938,8.0,137.83,137.78,25.4016]
[1719334821112,8.0,137.83,137.78,33.4016]
[1719334821446,12.52164412,137.86,137.75,33.8117]
[1719334821612,8.0,137.8,137.75,25.4068]
[1719334822735,15.4277,137.82,137.75,25.4068]
[1719334822941,15.4277,137.82,137.76,7.2588]
[1719334823144,15.4277,137.82,137.78,7.2576]
[1719334823345,15.4277,137.82,137.77,18.1454]
[1719334823852,15.4277,137.82,137.75,7.2593]
[1719334824027,15.4277,137.82,137.74,18.1493]
[1719334824028,15.4277,137.82,137.76,7.2587]
[1719334824429,15.4277,137.82,137.75,7.2593]
[1719334824735,15.4277,137.82,137.76,7.2589]
[1719334825145,15.4277,137.82,137.74,18.1493]
[1719334825444,15.4277,137.82,137.76,18.1469]
[1719334825645,15.4277,137.82,137.77,7.2582]
[1719334825845,15.4277,137.82,137.73,36.3005]
[1719334825846,15.4277,137.82,137.78,18.1446]
[1719334826034,56.52460456,137.85,137.79,7.2572]
[1719334826035,20.0,137.85,137.79,7.2572]
[1719334826640,20.0,137.85,137.8,7.2568]
[1719334826939,20.0,137.85,137.81,7.2563]
[1719334827920,20.0,137.85,137.8,25.3987]
[1719334829530,22.4782,137.86,137.81,7.2562]
[1719334829845,12.58460456,137.88,137.82,7.2556]
[1719334830139,5.96804412,137.88,137.82,7.2556]
[1719334830345,15.5853,137.89,137.83,7.2552]
[1719334830547,20.0,137.88,137.8,7.2565]
[1719334830850,20.0,137.88,137.78,37.2534]
[1719334830851,25.96804412,137.88,137.78,37.2534]
[1719334831020,5.96804412,137.88,137.79,45.79]
[1719334831226,15.5853,137.89,137.85,7.2538]
[1719334831554,15.0355,137.93,137.86,18.1335]
[1719334831952,7.2507,137.92,137.84,7.2546]
[1719334832119,22.2859,137.93,137.85,7.2542]
[1719334832440,7.2505,137.92,137.84,7.2546]
[1719334832848,23.94,137.91,137.79,18.1424]
[1719334833142,7.2525,137.89,137.81,7.2563]
[1719334833446,20.0,137.88,137.81,18.1404]
[1719334833627,20.0,137.9,137.83,7.2552]
[1719334834549,20.0,137.9,137.84,7.2544]
[1719334835042,13.86716044,137.92,137.83,18.1373]
[1719334835043,20.0,137.91,137.85,7.2542]
[1719334835546,20.0,137.91,137.86,7.2536]
[1719334835752,15.0355,137.93,137.86,7.2536]
[1719334835931,20.0,137.92,137.86,7.2536]
[1719334836720,20.0,137.92,137.85,18.1349]
[1719334836721,20.0,137.92,137.82,18.1388]
[1719334836950,7.2517,137.9,137.82,25.3942]
[1719334837426,7.2517,137.9,137.83,7.2552]
[1719334837631,7.2512,137.91,137.83,7.2552]
[1719334837847,20.0,137.9,137.83,7.2552]
[1719334838052,20.0,137.9,137.82,18.1388]
[1719334838346,20.0,137.91,137.82,18.1388]
[1719334838655,20.0,137.91,137.84,7.2543]
[1719334840455,27.2511,137.91,137.83,7.2551]
[1719334840641,7.2518,137.9,137.82,25.3944]
[1719334840841,20.0,137.89,137.83,7.2552]
[1719334841246,20.0,137.89,137.82,25.3944]
[1719334841561,20.0,137.89,137.83,7.2552]
[1719334841942,20.0,137.89,137.81,23.6942]
[1719334842152,6.5379,137.88,137.79,25.3997]
[1719334842348,27.2534,137.87,137.79,25.3997]
[1719334843243,20.0,137.87,137.8,7.2568]
[1719334844253,27.2533,137.87,137.8,7.2568]
[1719334844841,27.2533,137.87,137.79,25.4002]
[1719334845030,7.2541,137.86,137.78,7.2577]
[1719334845238,20.0,137.85,137.76,36.2931]
[1719334845426,20.0,137.87,137.81,7.2561]
[1719334845629,20.0,137.87,137.8,18.1418]
[1719334845837,20.0,137.87,137.81,7.2559]
[1719334846064,20.0,137.87,137.8,25.3985]
[1719334846245,27.2534,137.87,137.8,18.1418]
[1719334847157,20.0,137.87,137.8,18.1418]
[1719334847452,20.0,137.87,137.82,7.2556]
[1719334848164,20.0,137.87,137.81,7.2561]
[1719334849257,20.0,137.87,137.82,7.2557]
[1719334850042,20.0,137.87,137.81,7.2561]
[1719334852233,20.0,137.87,137.8,25.3985]
[1719334852460,20.0,137.87,137.79,7.2572]
[1719334852764,27.2534,137.87,137.79,7.2572]
[1719334853053,7.2537,137.86,137.79,7.257]
[1719334853264,20.0,137.85,137.79,7.257]
[1719334853447,27.2533,137.87,137.79,7.257]
[1719334855962,20.0,137.87,137.8,7.2565]
[1719334856754,20.0,137.87,137.8,15.2265]
[1719334857057,7.97,137.85,137.8,7.97]
[1719334857442,20.0,137.87,137.81,1.10282165]
[1719334857640,7.97,137.86,137.79,18.1434]
[1719334857843,20.0,137.85,137.8,7.97]
[1719334858574,20.0,137.85,137.8,15.2266]
[1719334859759,27.97,137.85,137.79,26.1134]
[1719334859934,7.97,137.84,137.77,7.2581]
[1719334860136,7.97,137.8,137.74,16.5772]
[1719334860338,16.4159,137.82,137.74,24.5472]
[1719334860569,7.97,137.81,137.75,7.97]
[1719334860752,7.97,137.81,137.75,33.3779]
[1719334860952,7.97,137.81,137.75,25.4079]
[1719334861364,7.97,137.81,137.75,33.3779]
[1719334861659,7.97,137.8,137.75,33.3779]
[1719334862546,23.6719,137.82,137.74,23.837]
[1719334862869,27.2565,137.81,137.73,7.2603]
[1719334863648,27.2565,137.81,137.74,7.2598]
[1719334864043,20.0,137.81,137.74,7.2598]
[1719334864446,27.2564,137.81,137.72,25.4121]
[1719334864651,20.0,137.81,137.74,7.2597]
[1719334865376,27.2565,137.81,137.74,7.2597]
[1719334865866,27.2565,137.81,137.74,7.2599]
[1719334866061,16.4159,137.82,137.7,97.3451]
[1719334866438,16.4159,137.82,137.77,7.2581]
[1719334866640,16.4159,137.82,137.76,8.70854717]
[1719334866854,16.4159,137.82,137.77,1.44964194]
[1719334867052,16.4159,137.82,137.76,1.44964194]
[1719334867270,16.4159,137.82,137.75,7.2594]
[1719334867466,23.6718,137.82,137.74,25.4096]
[1719334867780,27.2564,137.81,137.74,26.85923146]
[1719334868087,20.0,137.81,137.75,1.45309114]
[1719334868248,20.0,137.81,137.75,8.71239114]
[1719334868445,20.0,137.81,137.75,1.45309114]
[1719334868646,20.0,137.81,137.75,8.71239114]
[1719334869052,20.0,137.81,137.76,18.1472]
[1719334869272,16.4159,137.82,137.78,7.2578]
[1719334869479,16.4159,137.82,137.77,1.45288019]
[1719334870174,16.4159,137.82,137.77,8.71118019]
[1719334870383,16.4159,137.82,137.77,1.45288019]
[1719334871887,20.0,137.81,137.71,1.45288019]
[1719334872183,25.96804412,137.81,137.71,1.45288019]
[1719334872562,25.96804412,137.81,137.72,18.152]
[1719334872766,25.96804412,137.81,137.73,1.45266921]
[1719334872958,7.2569,137.8,137.73,1.45266921]
[1719334873170,20.0,137.79,137.73,1.45266921]
[1719334873474,33.22474412,137.81,137.73,8.71306921]
[1719334873663,33.22474412,137.81,137.74,1.45256374]
[1719334874175,25.96804412,137.81,137.74,8.71236374]
[1719334874557,25.96804412,137.81,137.75,1.45245829]
[1719334875353,33.22444412,137.81,137.75,1.45245829]
[1719334875565,33.22444412,137.81,137.74,1.4526307]
[1719334876179,33.22444412,137.81,137.74,8.7126307]
[1719334876482,25.96804412,137.81,137.74,8.7126307]
[1719334876855,20.0,137.81,137.74,19.6023307]
[1719334877083,6.0097,137.83,137.74,19.6023307]
[1719334877084,20.0,137.82,137.74,19.6023307]
[1719334877382,6.0097,137.83,137.76,25.4058]
[1719334877681,6.0097,137.83,137.77,1.45231438]
[1719334878496,17.66604445,137.86,137.8,7.2564]
[1719334878497,12.58460456,137.86,137.8,7.2564]
[1719334878785,12.58460456,137.86,137.81,1.45201078]
[1719334879074,5.96804412,137.86,137.81,1.45201078]
[1719334879768,5.96804412,137.86,137.81,7.2563]
[1719334880085,7.2528,137.88,137.82,1.45182222]
[1719334880261,16.5229,137.89,137.82,8.70752222]
[1719334880459,20.0,137.88,137.83,8.70691688]
[1719334880661,16.5229,137.89,137.83,8.70691688]
[1719334880878,19.15790456,137.9,137.83,8.70691688]
[1719334881655,12.58460456,137.9,137.83,25.33101688]
[1719334882062,5.96804412,137.9,137.83,25.33101688]
[1719334882261,5.96804412,137.9,137.84,7.2546]
[1719334882481,5.96804412,137.9,137.85,1.45286522]
[1719334883479,5.96804412,137.9,137.8,15.6868]
[1719334883684,20.0,137.89,137.8,15.6868]
[1719334883984,7.2536,137.87,137.8,15.6868]
[1719334884185,20.0,137.86,137.8,22.9436]
[1719334884864,20.0,137.86,137.8,15.6868]
[1719334886687,20.0,137.88,137.8,15.6868]
[1719334887194,7.2539,137.86,137.8,15.6868]
[1719334887366,20.0,137.85,137.8,15.6868]
[1719334887690,20.0,137.85,137.76,30.1529]
[1719334887890,7.255,137.84,137.76,30.1529]
[1719334888066,20.0,137.86,137.76,22.8944]
[1719334888266,25.96804412,137.86,137.76,30.1532]
[1719334888689,7.2547,137.85,137.77,7.2582]
[1719334888891,20.0,137.84,137.77,7.2582]
[1719334889767,20.0,137.84,137.77,18.1456]
[1719334890091,20.0,137.85,137.78,7.2576]
[1719334890286,20.0,137.85,137.79,7.2572]
[1719334890492,20.0,137.85,137.78,7.2577]
[1719334891293,20.0,137.85,137.79,7.2572]
[1719334891795,6.61656044,137.89,137.77,58.1021]
[1719334891969,11.04948401,137.9,137.82,7.2558]
[1719334891970,20.0,137.88,137.82,7.2558]
[1719334892302,13.21984412,137.9,137.81,6.1352]
[1719334892303,5.96804412,137.9,137.81,6.1352]
[1719334892469,5.96804412,137.9,137.83,25.3932]
[1719334892776,13.21964412,137.9,137.83,18.1381]
[1719334893196,5.96804412,137.9,137.82,15.5926]
[1719334893494,7.2527,137.88,137.82,15.5926]
[1719334894006,7.2523,137.89,137.82,15.5926]
[1719334894295,5.96804412,137.9,137.83,7.2552]
[1719334894474,20.0,137.89,137.83,7.2552]
[1719334894671,20.0,137.89,137.82,55.5418]
[1719334894873,20.0,137.89,137.84,7.2543]
[1719334895179,27.2511,137.91,137.83,7.2551]
[1719334895769,20.0,137.91,137.84,18.1365]
[1719334896072,20.0,137.92,137.84,18.1365]
[1719334896791,20.0,137.92,137.86,7.2536]
[1719334897483,20.0,137.92,137.85,7.254]
[1719334897791,27.2506,137.92,137.85,7.254]
[1719334898363,20.0,137.92,137.82,15.5926]
[1719334898791,27.2508,137.92,137.84,7.2544]
[1719334899197,27.2508,137.92,137.85,7.2542]
[1719334900402,20.0,137.92,137.85,18.1354]
[1719334900779,20.0,137.92,137.86,7.2535]
[1719334901303,20.0,137.92,137.85,18.1354]
[1719334901595,20.0,137.93,137.88,18.1316]
[1719334901971,20.0,137.93,137.87,7.253]
[1719334902373,23.94,137.96,137.89,22.4603]
[1719334902605,14.06926892,137.98,137.91,7.2511]
[1719334902894,20.0,137.97,137.92,1.44856578]
[1719334903274,20.0,137.97,137.92,8.69906578]
[1719334903480,0.8538248,137.98,137.93,1.44846088]
[1719334904181,0.8538248,137.98,137.93,8.69846088]
[1719334905093,0.8538248,137.98,137.94,7.2492]
[1719334905298,0.8538248,137.98,137.95,1.44825088]
[1719334905709,0.8538248,137.98,137.95,19.57005088]
[1719334906003,0.8538248,137.98,137.97,7.2479]
[1719334906380,0.8538248,137.98,137.97,7.2079]
[1719334907190,0.8538248,137.98,137.96,15.27064618]
[1719334907385,0.8538248,137.98,137.96,8.02234618]
[1719334907986,6.61656044,138.08,138.01,7.2454]
[1719334908289,7.2417,138.09,138.01,25.3596]
[1719334908604,59.07940456,138.11,137.98,18.1176]
[1719334908908,267.78460456,138.1,138.0,18.1151]
[1719334909111,7.2417,138.09,138.02,7.2451]
[1719334909292,275.02580456,138.1,138.02,7.2451]
[1719334909612,275.02580456,138.1,138.02,25.358]
[1719334909798,275.02580456,138.1,138.02,18.1129]
[1719334909799,7.2418,138.09,138.02,18.1129]
[1719334909991,7.2418,138.09,138.02,25.3581]
[1719334910202,20.0,138.08,138.02,18.1129]
[1719334910386,27.2422,138.08,138.0,7.2462]
[1719334910905,20.0,138.08,138.0,7.2462]
[1719334911083,7.2425,138.08,138.0,7.2462]
[1719334911280,7.2438,138.05,137.98,7.2473]
[1719334911494,20.0,138.04,137.96,24.6946]
[1719334911811,20.0,138.04,137.98,7.2474]
[1719334912007,20.0,138.05,137.95,52.6747]
[1719334912216,20.0,138.05,137.98,7.2473]
[1719334912395,20.0,138.05,137.95,52.6747]
[1719334912594,20.0,138.05,138.0,7.2459]
[1719334912792,20.0,138.07,138.0,7.2459]
[1719334913120,20.0,138.07,138.0,7.2462]
[1719334913413,20.0,138.07,138.01,7.2457]
[1719334914198,20.0,138.07,138.0,7.2462]
[1719334914699,20.0,138.07,138.01,25.36]
[1719334915209,20.0,138.07,138.0,7.2463]
[1719334915418,20.0,138.07,138.0,18.1156]
[1719334915911,20.0,138.07,138.01,7.2457]
[1719334916612,20.0,138.07,138.0,25.3617]
[1719334917000,20.0,138.07,138.02,7.2451]
[1719334917404,20.0,138.08,138.02,25.3577]
[1719334917715,20.0,138.08,138.02,18.1128]
[1719334918623,20.0,138.08,138.02,25.3579]
[1719334918913,20.0,138.08,138.02,18.1128]
[1719334919418,20.0,138.08,138.01,7.2457]
[1719334919585,20.0,138.08,138.02,7.2453]
[1719334920007,27.2421,138.08,138.01,18.114]
[1719334920217,20.0,138.08,138.01,18.114]
[1719334920403,20.0,138.08,137.96,21.98]
[1719334920610,27.2422,138.08,138.0,7.246]
[1719334920815,7.2428,138.07,138.0,7.246]
[1719334921116,20.0,138.08,138.02,7.2451]
[1719334921509,5.96804412,138.11,138.03,18.1115]
[1719334921715,29.89228524,138.12,138.04,7.2441]
[1719334922025,22.65178524,138.12,138.05,25.3527]
[1719334922198,22.65178524,138.12,138.06,7.2429]
[1719334922389,16.0352248,138.12,138.05,18.1091]
[1719334922591,16.0352248,138.12,138.05,25.3526]
[1719334922901,0.8538248,138.12,138.07,18.1062]
[1719334923099,0.8538248,138.12,138.09,18.1037]
[1719334923327,0.8538248,138.12,138.11,7.2406]
[1719334923514,0.8538248,138.12,138.1,7.2409]
[1719334923821,0.8538248,138.12,138.09,18.1037]
[1719334924133,0.8538248,138.12,138.1,7.241]
[1719334924302,0.8538248,138.12,138.09,25.3452]
[1719334924708,0.8538248,138.12,138.07,7.2422]
[1719334925023,0.8538248,138.12,138.08,7.242]
[1719334925528,0.8538248,138.12,138.06,18.1075]
[1719334925732,0.8538248,138.12,138.08,7.2418]
[1719334925895,0.8538248,138.12,138.09,7.2414]
[1719334926693,0.8538248,138.12,138.1,7.2406]
[1719334926896,0.8538248,138.12,138.1,18.1018]
[1719334927122,0.8538248,138.12,138.11,7.2406]
[1719334927420,0.8538248,138.12,138.11,1.44706128]
[1719334928429,0.8538248,138.12,138.1,1.44706128]
[1719334928628,0.8538248,138.12,138.09,1.44706128]
[1719334928839,0.8538248,138.12,138.08,8.68906128]
[1719334929321,0.8538248,138.12,138.08,1.44706128]
[1719334929520,0.8538248,138.12,138.08,8.68916128]
[1719334929723,0.8538248,138.12,138.08,8.68906128]
[1719334930299,0.8538248,138.12,138.09,7.2415]
[1719334930524,0.8538248,138.12,138.1,1.44664216]
[1719334930819,0.8538248,138.12,138.05,1.44664216]
[1719334931018,0.8538248,138.12,138.05,8.69024216]
[1719334931205,6.4046,138.11,138.02,7.2453]
[1719334931544,20.0,138.1,138.03,7.2447]
[1719334931820,20.0,138.1,138.04,7.244]
[1719334932200,20.0,138.1,138.0,33.6095]
[1719334932201,7.2417,138.09,138.0,33.6095]
[1719334932413,20.0,138.1,138.03,7.2447]
[1719334932626,20.0,138.1,138.04,7.2442]
[1719334932918,6.4046,138.11,138.02,21.81]
[1719334933104,0.8538248,138.12,138.06,18.1076]
[1719334933317,0.8538248,138.12,138.07,7.2426]
[1719334933498,0.8538248,138.12,138.06,18.1076]
[1719334933699,0.8538248,138.12,138.06,25.3507]
[1719334933923,0.8538248,138.12,138.06,18.1076]
[1719334934507,0.8538248,138.12,138.07,7.2425]
[1719334935002,0.8538248,138.12,138.06,25.3506]
[1719334935210,0.8538248,138.12,138.03,42.051]
[1719334935427,0.8538248,138.12,138.03,25.3556]
[1719334935606,7.2406,138.11,138.03,25.3556]
[1719334935926,27.2413,138.1,138.03,18.111]
[1719334936245,20.0,138.1,138.03,18.111]
[1719334936429,8.0942248,138.12,138.04,7.2441]
[1719334936616,20.0,138.11,138.04,7.2441]
[1719334936817,20.0,138.11,138.05,7.2437]
[1719334937314,20.8538248,138.12,138.05,7.2437]
[1719334937523,28.0939248,138.12,138.05,7.2437]
[1719334938335,20.8538248,138.12,138.06,7.2432]
[1719334938645,20.8538248,138.12,138.03,18.111]